bitfinex/quotes_BTCUSD_20240715
["timestamp","ask_amount","ask_price","bid_price","bid_amount"]
[1721067677029,0.22852939,63561.0,63560.0,0.34266]
[1721067677239,0.28382891,63561.0,63560.0,0.34266]
[1721067678337,0.16382891,63561.0,63560.0,0.34266]
[1721067678681,0.28382891,63561.0,63560.0,0.34266]
[1721067678851,0.16382891,63561.0,63560.0,0.34266]
[1721067679113,0.10867605,63561.0,63560.0,0.34266]
[1721067679298,0.04227605,63561.0,63560.0,0.34266]
[1721067680261,0.04227605,63561.0,63560.0,0.499991]
[1721067680667,0.04227605,63561.0,63560.0,0.34266]
[1721067680880,0.03345487,63561.0,63560.0,0.34266]
[1721067681315,0.03345487,63561.0,63560.0,0.499991]
[1721067682346,0.03322589,63561.0,63560.0,0.499991]
[1721067682842,0.15322628,63561.0,63560.0,0.34266]
[1721067683417,0.21567437,63561.0,63560.0,0.34266]
[1721067683979,0.51860337,63561.0,63560.0,0.34266]
[1721067684205,0.36127437,63561.0,63560.0,0.34266]
[1721067684561,0.41259174,63561.0,63560.0,0.34266]
[1721067684713,0.40377635,63561.0,63560.0,0.34266]
[1721067684939,0.83745528,63561.0,63560.0,0.34266]
[1721067685123,0.51973375,63561.0,63560.0,0.34266]
[1721067685317,0.61405096,63561.0,63560.0,0.34266]
[1721067685520,0.9289553,63561.0,63560.0,0.34266]
[1721067685906,1.24361322,63561.0,63560.0,0.34266]
[1721067686097,1.20328893,63561.0,63560.0,0.34266]
[1721067686228,1.32119685,63561.0,63560.0,0.34266]
[1721067686679,1.32119685,63561.0,63560.0,0.32866]
[1721067686918,1.82119685,63561.0,63560.0,0.31466]
[1721067687051,2.19585485,63561.0,63560.0,0.32166]
[1721067687448,2.19585485,63561.0,63560.0,0.32266]
[1721067688502,2.07794693,63561.0,63560.0,0.32266]
[1721067688658,2.07794693,63561.0,63560.0,0.31466]
[1721067688863,2.01794693,63561.0,63560.0,0.33166]
[1721067689064,1.70328893,63561.0,63560.0,0.33166]
[1721067689288,1.82119432,63561.0,63560.0,0.33166]
[1721067689693,1.82119432,63561.0,63560.0,0.32366]
[1721067689951,1.70328893,63561.0,63560.0,0.32366]
[1721067690163,1.70328893,63561.0,63560.0,0.32766]
[1721067690477,0.41664393,63561.0,63560.0,0.31866]
[1721067690679,0.41664393,63561.0,63560.0,0.32366]
[1721067690817,0.21704196,63561.0,63560.0,0.33166]
[1721067691936,0.09704196,63561.0,63560.0,0.33166]
[1721067692135,0.04202439,63561.0,63560.0,0.32666]
[1721067692332,0.02499273,63561.0,63560.0,0.32666]
[1721067692543,0.04202469,63561.0,63560.0,0.33566]
[1721067692747,0.03322196,63561.0,63560.0,0.33566]
[1721067692900,0.09510355,63561.0,63560.0,0.33566]
[1721067693103,0.08793569,63561.0,63560.0,0.33566]
[1721067693299,0.09519809,63561.0,63560.0,0.33566]
[1721067694332,0.09519809,63561.0,63560.0,0.41886]
[1721067694858,0.04048436,63561.0,63560.0,0.41886]
[1721067695970,0.16048436,63561.0,63560.0,0.41886]
[1721067696335,0.21472044,63561.0,63560.0,0.33566]
[1721067696668,0.09471006,63561.0,63560.0,0.33566]
[1721067697044,0.04048436,63561.0,63560.0,0.33566]
[1721067697577,0.0947658,63561.0,63560.0,0.33566]
[1721067697783,0.03322196,63561.0,63560.0,0.33566]
[1721067697989,0.04048043,63561.0,63560.0,0.33566]
[1721067698187,0.03322196,63561.0,63560.0,0.33566]
[1721067698420,0.03322196,63561.0,63560.0,1.122317]
[1721067698421,0.01619,63561.0,63560.0,1.122317]
[1721067698569,0.03422759,63561.0,63560.0,1.113317]
[1721067698776,0.03422759,63561.0,63560.0,1.122317]
[1721067698970,0.03422759,63561.0,63560.0,0.807654]
[1721067699213,0.03422759,63561.0,63560.0,0.795654]
[1721067699439,0.03422759,63561.0,63560.0,1.108317]
[1721067699734,0.03422759,63561.0,63560.0,1.115317]
[1721067700116,0.03422759,63561.0,63560.0,0.499991]
[1721067700316,0.21133093,63561.0,63560.0,0.34266]
[1721067700527,0.09133093,63561.0,63560.0,0.34266]
[1721067700721,0.09860448,63561.0,63560.0,0.34266]
[1721067701070,0.21860448,63561.0,63560.0,0.34266]
[1721067701273,0.09860448,63561.0,63560.0,0.34266]
[1721067701770,0.04148457,63561.0,63560.0,0.34266]
[1721067702194,0.03406349,63561.0,63560.0,0.34266]
[1721067703036,0.03406349,63561.0,63560.0,1.195617]
[1721067703260,0.03406349,63561.0,63560.0,1.51028]
[1721067704866,0.03424572,63561.0,63560.0,1.51028]
[1721067705071,0.03424572,63561.0,63560.0,0.566291]
[1721067705271,0.03424572,63561.0,63560.0,0.499991]
[1721067705485,0.03424572,63561.0,63560.0,0.34266]
[1721067705486,0.04162575,63561.0,63560.0,0.34266]
[1721067705654,0.16162575,63561.0,63560.0,0.34266]
[1721067706494,0.21848204,63561.0,63560.0,0.34266]
[1721067706707,0.37597214,63561.0,63560.0,0.34266]
[1721067706905,0.44980071,63561.0,63560.0,0.34266]
[1721067707177,0.37597214,63561.0,63560.0,0.34266]
[1721067707378,0.5288194,63561.0,63560.0,0.34266]
[1721067707734,0.52575587,63561.0,63560.0,0.32866]
[1721067707936,0.54932995,63561.0,63560.0,0.31466]
[1721067708137,0.45236691,63561.0,63560.0,0.34066]
[1721067708342,1.0068352,63561.0,63560.0,0.34066]
[1721067708545,1.70353993,63561.0,63560.0,0.34066]
[1721067708744,2.01819793,63561.0,63560.0,0.32666]
[1721067709110,2.01819793,63561.0,63560.0,0.34066]
[1721067709362,2.07819793,63561.0,63560.0,0.34066]
[1721067709565,2.01819793,63561.0,63560.0,0.32666]
[1721067709756,2.01819793,63561.0,63560.0,0.33166]
[1721067709945,2.01819793,63561.0,63560.0,0.31966]
[1721067710105,2.01819793,63561.0,63560.0,0.32366]
[1721067710530,2.01819793,63561.0,63560.0,0.31966]
[1721067710953,2.07819793,63561.0,63560.0,0.32366]
[1721067711154,2.07819793,63561.0,63560.0,0.31866]
[1721067711379,2.00309042,63561.0,63560.0,0.31866]
[1721067711567,2.07883863,63561.0,63560.0,0.32366]
[1721067711773,2.00309042,63561.0,63560.0,0.32366]
[1721067711968,2.10183863,63561.0,63560.0,0.32366]
[1721067712553,2.04183863,63561.0,63560.0,0.32366]
[1721067714159,1.54183863,63561.0,63560.0,0.32366]
[1721067714360,0.41753563,63561.0,63560.0,0.32366]
[1721067714561,0.20058742,63561.0,63560.0,0.32366]
[1721067714907,0.31412261,63561.0,63560.0,0.32366]
[1721067715107,0.31718614,63561.0,63560.0,0.32366]
[1721067715509,0.21549974,63561.0,63560.0,0.32366]
[1721067715821,0.37282874,63561.0,63560.0,0.32366]
[1721067715963,0.36976521,63561.0,63560.0,0.32366]
[1721067716656,0.37664965,63561.0,63560.0,0.32366]
[1721067716868,0.52621727,63561.0,63560.0,0.32366]
[1721067717926,0.36888827,63561.0,63560.0,0.32366]
[1721067718109,0.36864612,63561.0,63560.0,0.32366]
[1721067718306,0.21899821,63561.0,63560.0,0.32366]
[1721067718729,0.37632721,63561.0,63560.0,0.32366]
[1721067718976,1.02916157,63561.0,63560.0,0.32366]
[1721067719181,1.02227713,63561.0,63560.0,0.32366]
[1721067719396,1.41645686,63561.0,63560.0,0.32366]
[1721067719794,0.91645686,63561.0,63560.0,0.32366]
[1721067720215,0.37183339,63561.0,63560.0,0.32366]
[1721067720404,0.21899903,63561.0,63560.0,0.32366]
[1721067720749,0.28972176,63561.0,63560.0,0.32366]
[1721067720936,0.28956221,63561.0,63560.0,0.32366]
[1721067721350,0.20009265,63561.0,63560.0,0.32366]
[1721067721555,0.21939266,63561.0,63560.0,0.32366]
[1721067722557,0.22167899,63561.0,63560.0,0.32366]
[1721067723660,0.36531842,63561.0,63560.0,0.32366]
[1721067724048,0.36532727,63561.0,63560.0,0.32366]
[1721067724257,0.21505055,63561.0,63560.0,0.32366]
[1721067724706,0.22194058,63561.0,63560.0,0.32366]
[1721067726468,0.16263686,63561.0,63560.0,0.32366]
[1721067726677,0.04263686,63561.0,63560.0,0.622591]
[1721067726883,0.01619,63561.0,63560.0,0.622591]
[1721067727085,0.03566477,63561.0,63560.0,0.622591]
[1721067727487,0.03566477,63561.0,63560.0,0.617591]
[1721067727685,0.03566477,63561.0,63560.0,0.46026]
[1721067727891,0.03566477,63561.0,63560.0,0.47426]
[1721067728363,0.03566477,63561.0,63560.0,0.47026]
[1721067728512,0.03566477,63561.0,63560.0,0.48426]
[1721067729068,0.03566477,63561.0,63560.0,0.47026]
[1721067729282,0.03566477,63561.0,63560.0,0.48426]
[1721067729878,0.03566477,63561.0,63560.0,0.627591]
[1721067730029,0.03566477,63561.0,63560.0,0.641591]
[1721067730239,0.03532186,63561.0,63560.0,0.641591]
[1721067731070,0.03532186,63561.0,63560.0,0.627591]
[1721067731268,0.03532186,63561.0,63560.0,1.256917]
[1721067731466,0.03532186,63561.0,63560.0,1.242917]
[1721067731676,0.03532186,63561.0,63560.0,1.57158]
[1721067731824,0.03537764,63561.0,63560.0,1.58558]
[1721067733483,0.03557962,63561.0,63560.0,1.58558]
[1721067733912,0.03558121,63561.0,63560.0,1.58558]
[1721067734886,0.03558121,63561.0,63560.0,1.57158]
[1721067735111,0.03558121,63561.0,63560.0,1.55758]
[1721067735341,0.03558121,63561.0,63560.0,1.57158]
[1721067736304,0.03558121,63561.0,63560.0,1.58558]
[1721067736657,0.03673675,63561.0,63560.0,1.58558]
[1721067739790,0.03673675,63561.0,63560.0,1.256917]
[1721067739791,0.01619,63561.0,63560.0,1.256917]
[1721067740394,0.03635182,63561.0,63560.0,1.270917]
[1721067740781,0.03635182,63561.0,63560.0,1.256917]
[1721067740979,0.15635182,63561.0,63560.0,0.34266]
[1721067741183,0.03635182,63561.0,63560.0,0.35666]
[1721067741379,0.03635182,63561.0,63560.0,0.513991]
[1721067742518,0.03635182,63561.0,63560.0,0.828654]
[1721067742519,0.03508951,63561.0,63560.0,0.828654]
[1721067742789,0.01619,63561.0,63560.0,0.828654]
[1721067743260,0.01619,63561.0,63560.0,1.101317]
[1721067743538,0.03509261,63561.0,63560.0,1.101317]
[1721067743761,0.03580417,63561.0,63560.0,1.129317]
[1721067743995,0.03580417,63561.0,63560.0,1.115317]
[1721067744490,0.03580417,63561.0,63560.0,0.32866]
[1721067744975,0.03580417,63561.0,63560.0,0.34266]
[1721067745215,0.15580417,63561.0,63560.0,0.32866]
[1721067745439,0.03580417,63561.0,63560.0,0.32866]
[1721067745672,0.03580417,63561.0,63560.0,0.485991]
[1721067746177,0.03580417,63561.0,63560.0,0.471991]
[1721067746418,0.03607313,63561.0,63560.0,0.471991]
[1721067746635,0.03607313,63561.0,63560.0,0.499991]
[1721067746891,0.03607313,63561.0,63560.0,1.129317]
[1721067747139,0.03607313,63561.0,63560.0,1.115317]
[1721067747362,0.03607313,63561.0,63560.0,1.143317]
[1721067747798,0.03607313,63561.0,63560.0,1.129317]
[1721067747947,0.03607313,63561.0,63560.0,1.101317]
[1721067748153,0.03607313,63561.0,63560.0,1.115317]
[1721067748353,0.03607313,63561.0,63560.0,1.129317]
[1721067749434,0.01619,63561.0,63560.0,1.129317]
[1721067749938,0.03572687,63561.0,63560.0,1.129317]
[1721067751433,0.03572687,63561.0,63560.0,1.209117]
[1721067751629,0.03572687,63561.0,63560.0,1.274817]
[1721067752291,0.01619,63561.0,63560.0,1.274817]
[1721067753359,0.03510268,63561.0,63560.0,1.274817]
[1721067753629,0.03515553,63561.0,63560.0,1.274817]
[1721067753805,0.01619,63561.0,63560.0,1.274817]
[1721067754431,0.01619,63561.0,63560.0,1.260817]
[1721067754589,0.01619,63561.0,63560.0,1.246817]
[1721067754819,0.01619,63561.0,63560.0,1.260817]
[1721067755427,0.03515523,63561.0,63560.0,1.260817]
[1721067755646,0.03514926,63561.0,63560.0,1.260817]
[1721067756047,0.03514924,63561.0,63560.0,1.246817]
[1721067756445,0.03514924,63561.0,63560.0,2.190143]
[1721067756446,0.01619,63561.0,63560.0,2.190143]
[1721067756655,0.01619,63561.0,63560.0,2.433743]
[1721067756849,0.01619,63561.0,63560.0,1.80508]
[1721067757064,0.01619,63561.0,63560.0,1.81908]
[1721067757183,0.01619,63561.0,63560.0,1.80508]
[1721067757578,0.01619,63561.0,63560.0,1.57548]
[1721067757781,0.01619,63561.0,63560.0,1.56148]
[1721067757982,0.01619,63561.0,63560.0,1.58948]
[1721067759313,0.01619,63561.0,63560.0,1.56148]
[1721067759524,0.01619,63561.0,63560.0,1.57548]
[1721067759722,0.01619,63561.0,63560.0,1.58948]
[1721067760148,0.01619,63561.0,63560.0,1.57548]
[1721067760502,0.01619,63561.0,63560.0,1.58940428]
[1721067760714,0.01619,63561.0,63560.0,1.60340428]
[1721067770479,0.01619,63561.0,63560.0,1.69470428]
[1721067771304,0.01619,63561.0,63560.0,2.20936728]
[1721067771514,0.01619,63561.0,63560.0,2.00936728]
[1721067771880,0.01619,63561.0,63560.0,1.69470428]
[1721067772096,0.01619,63561.0,63560.0,1.65361728]
[1721067772296,0.01619,63561.0,63560.0,1.66761728]
[1721067772468,0.01619,63561.0,63560.0,1.68161728]
[1721067772673,0.01619,63561.0,63560.0,1.66761728]
[1721067773754,0.01619,63561.0,63560.0,1.68161728]
[1721067774504,0.01619,63561.0,63560.0,1.66761728]
[1721067774928,0.01619,63561.0,63560.0,1.68161728]
[1721067775125,0.01619,63561.0,63560.0,1.66761728]
[1721067775347,0.01619,63561.0,63560.0,1.65361728]
[1721067775551,0.01619,63561.0,63560.0,1.66761728]
[1721067775697,0.01619,63561.0,63560.0,1.68161728]
[1721067779662,0.01619,63561.0,63560.0,1.88161728]
[1721067779879,0.01619,63561.0,63560.0,2.34329963]
[1721067780038,0.01619,63561.0,63560.0,1.98161728]
[1721067780239,0.01619,63561.0,63560.0,2.39628028]
[1721067780446,0.01619,63561.0,63560.0,1.69031728]
[1721067780650,0.01619,63561.0,63560.0,2.08161728]
[1721067780850,0.01619,63561.0,63560.0,2.39628028]
[1721067781057,0.01619,63561.0,63560.0,1.78161728]
[1721067781252,0.01619,63561.0,63560.0,2.08161728]
[1721067781789,0.01619,63561.0,63560.0,2.39628028]
[1721067782130,0.00833,63571.0,63570.0,0.157306]
[1721067782324,0.00833,63571.0,63570.0,0.471996]
[1721067782325,0.15323,63571.0,63570.0,0.471996]
[1721067782431,0.15323,63571.0,63570.0,0.563296]
[1721067782635,0.17409396,63571.0,63570.0,0.563296]
[1721067783443,0.17409396,63571.0,63570.0,0.471996]
[1721067783639,0.17409396,63571.0,63570.0,0.563296]
[1721067783824,0.17409396,63571.0,63570.0,0.577296]
[1721067784240,0.17409396,63571.0,63570.0,0.591296]
[1721067784392,0.17361917,63571.0,63570.0,0.591296]
[1721067784760,0.29361917,63571.0,63570.0,0.41999]
[1721067785137,0.29361917,63571.0,63570.0,0.43399]
[1721067785339,0.17361917,63571.0,63570.0,0.43399]
[1721067785540,0.17361917,63571.0,63570.0,0.485996]
[1721067785911,0.17361917,63571.0,63570.0,0.471996]
[1721067786122,0.17361917,63571.0,63570.0,0.499996]
[1721067786406,0.29361917,63571.0,63570.0,0.43399]
[1721067786728,0.17361917,63571.0,63570.0,0.43399]
[1721067786898,0.17361917,63571.0,63570.0,0.41999]
[1721067787261,0.17361917,63571.0,63570.0,0.43399]
[1721067787438,0.15323,63571.0,63570.0,0.41999]
[1721067787817,0.15323,63571.0,63570.0,0.591296]
[1721067787818,0.17284696,63571.0,63570.0,0.591296]
[1721067788212,0.02794696,63571.0,63570.0,0.577296]
[1721067788426,0.02794696,63571.0,63570.0,1.206522]
[1721067788615,0.02794696,63571.0,63570.0,1.272322]
[1721067788970,0.02794696,63571.0,63570.0,0.877909]
[1721067788971,0.02840817,63571.0,63570.0,0.877909]
[1721067789169,0.02840817,63571.0,63570.0,0.891909]
[1721067789371,0.02840817,63571.0,63570.0,0.905909]
[1721067789699,0.11030817,63571.0,63570.0,0.577296]
[1721067789946,0.23030817,63571.0,63570.0,0.591296]
[1721067790128,0.11030817,63571.0,63570.0,0.591296]
[1721067790353,0.11030817,63571.0,63570.0,0.34269]
[1721067790354,0.51590782,63571.0,63570.0,0.34269]
[1721067790547,0.88699769,63571.0,63570.0,0.34269]
[1721067790744,0.88699769,63571.0,63570.0,0.32869]
[1721067790745,0.88704601,63571.0,63570.0,0.32869]
[1721067790958,1.00262856,63571.0,63570.0,0.34269]
[1721067791249,1.00376679,63571.0,63570.0,0.34269]
[1721067791428,1.00376679,63571.0,63570.0,0.32869]
[1721067791630,1.00376679,63571.0,63570.0,0.34169]
[1721067792146,1.00326679,63571.0,63570.0,0.34169]
[1721067792366,1.00326679,63571.0,63570.0,0.31469]
[1721067792367,0.35641862,63571.0,63570.0,0.31469]
[1721067792624,0.35641862,63571.0,63570.0,0.34169]
[1721067792625,0.23641862,63571.0,63570.0,0.34169]
[1721067792934,0.35641862,63571.0,63570.0,0.32769]
[1721067793268,0.35641862,63571.0,63570.0,0.33769]
[1721067793550,0.21071862,63571.0,63570.0,0.33769]
[1721067793772,0.02852536,63571.0,63570.0,0.33769]
[1721067793973,0.02852536,63571.0,63570.0,1.124222]
[1721067793974,0.02888024,63571.0,63570.0,1.124222]
[1721067794177,0.02887678,63571.0,63570.0,1.264922]
[1721067794529,0.02887678,63571.0,63570.0,0.494996]
[1721067795361,0.02887678,63571.0,63570.0,0.786609]
[1721067795565,0.02887678,63571.0,63570.0,1.101222]
[1721067795566,0.00783,63571.0,63570.0,1.101222]
[1721067795915,0.00783,63571.0,63570.0,1.256622]
[1721067796325,0.00783,63571.0,63570.0,0.814609]
[1721067796529,0.00783,63571.0,63570.0,1.571235]
[1721067796825,0.00783,63571.0,63570.0,2.328248]
[1721067797402,0.00783,63571.0,63570.0,2.314248]
[1721067797622,0.00783,63571.0,63570.0,2.328248]
[1721067798285,0.00783,63571.0,63570.0,2.314248]
[1721067798482,0.00783,63571.0,63570.0,2.328248]
[1721067798905,0.00783,63571.0,63570.0,2.314248]
[1721067799118,0.00783,63571.0,63570.0,2.328248]
[1721067799887,0.00783,63571.0,63570.0,2.314248]
[1721067800096,0.00783,63571.0,63570.0,2.300248]
[1721067800342,0.00783,63571.0,63570.0,2.314248]
[1721067801415,0.00783,63571.0,63570.0,2.328248]
[1721067801593,0.00783,63571.0,63570.0,2.314248]
[1721067801999,0.00783,63571.0,63570.0,2.828861]
[1721067802199,0.00783,63571.0,63570.0,2.91325396]
[1721067802600,0.00783,63571.0,63570.0,3.26201836]
[1721067802801,0.00783,63571.0,63570.0,2.91325396]
[1721067803008,0.00783,63571.0,63570.0,2.89925396]
[1721067803342,0.00783,63571.0,63570.0,2.828861]
[1721067803557,0.00783,63571.0,63570.0,2.842861]
[1721067804102,0.00783,63571.0,63570.0,2.88973061]
[1721067804332,0.00834,63574.0,63573.0,2.130289]
[1721067804531,0.00834,63574.0,63573.0,2.586669]
[1721067804690,0.00834,63574.0,63573.0,2.63351101]
[1721067804893,0.00834,63574.0,63573.0,3.06599219]
[1721067805294,0.00834,63574.0,63573.0,2.31888952]
[1721067805524,0.00834,63574.0,63573.0,2.272071]
[1721067805723,0.00834,63574.0,63573.0,2.300071]
[1721067806144,0.00834,63574.0,63573.0,2.600669]
[1721067806348,0.00834,63574.0,63573.0,2.66148752]
[1721067806581,0.00834,63574.0,63573.0,2.614669]
[1721067806723,0.00834,63574.0,63573.0,3.1641871]
[1721067806925,0.00834,63574.0,63573.0,3.16418397]
[1721067807287,0.00834,63574.0,63573.0,2.67544797]
[1721067807824,0.00834,63574.0,63573.0,2.74526175]
[1721067808133,0.00834,63574.0,63573.0,2.75926175]
[1721067808272,0.00834,63574.0,63573.0,2.66143074]
[1721067808479,0.00834,63574.0,63573.0,2.64743074]
[1721067808702,0.00834,63574.0,63573.0,2.66143074]
[1721067809318,0.00834,63574.0,63573.0,2.614669]
[1721067810498,0.00334,63574.0,63573.0,2.614669]
[1721067814775,0.00334,63574.0,63573.0,2.600669]
[1721067815363,0.00334,63574.0,63573.0,2.614669]
[1721067815560,0.0001,63586.0,63585.0,1.100886]
[1721067815764,0.0001,63586.0,63585.0,1.615506]
[1721067816217,0.0001,63586.0,63585.0,1.415506]
[1721067817223,0.0001,63586.0,63585.0,1.429506]
[1721067818426,0.0001,63586.0,63585.0,1.114967]
[1721067818642,0.0001,63586.0,63585.0,0.34262]
[1721067818643,0.1965,63586.0,63585.0,0.34262]
[1721067818845,0.2626,63586.0,63585.0,0.34262]
[1721067819229,0.2626,63586.0,63585.0,0.32862]
[1721067819651,0.2626,63586.0,63585.0,0.34262]
[1721067819829,0.2661,63586.0,63585.0,0.31462]
[1721067820039,0.1461,63586.0,63585.0,0.31462]
[1721067820334,0.1461,63586.0,63585.0,0.32862]
[1721067820335,0.2661,63586.0,63585.0,0.32862]
[1721067820537,0.2661,63586.0,63585.0,0.34262]
[1721067820935,0.2661,63586.0,63585.0,0.32862]
[1721067821064,0.2661,63586.0,63585.0,0.34262]
[1721067821493,0.2661,63586.0,63585.0,0.32862]
[1721067821494,0.1461,63586.0,63585.0,0.32862]
[1721067821920,0.1461,63586.0,63585.0,0.499889]
[1721067822346,0.1461,63586.0,63585.0,0.814428]
[1721067826880,0.16319052,63586.0,63585.0,0.814428]
[1721067827093,0.02069052,63586.0,63585.0,1.443506]
[1721067827293,0.0001,63586.0,63585.0,1.443506]
[1721067827757,0.0001,63586.0,63585.0,1.128967]
[1721067828179,0.0001,63586.0,63585.0,1.443506]
[1721067829451,0.0036,63586.0,63585.0,1.443506]
[1721067833473,0.0036,63586.0,63585.0,0.34262]
[1721067833648,0.0036,63586.0,63585.0,1.128967]
[1721067833858,0.0036,63586.0,63585.0,1.443506]
[1721067834861,0.00443,63586.0,63585.0,1.443506]
[1721067836200,0.00443,63586.0,63585.0,1.128967]
[1721067837703,0.02575828,63586.0,63585.0,1.128967]
[1721067839500,0.00443,63586.0,63585.0,1.128967]
[1721067839743,0.02596565,63586.0,63585.0,1.128967]
[1721067840563,0.00443,63586.0,63585.0,1.128967]
[1721067840746,0.00443,63586.0,63585.0,1.584506]
[1721067842278,0.00443,63586.0,63585.0,1.443506]
[1721067843066,0.00443,63586.0,63585.0,1.429506]
[1721067843268,0.00443,63586.0,63585.0,1.114967]
[1721067843472,0.00443,63586.0,63585.0,0.34262]
[1721067843473,0.18883,63586.0,63585.0,0.34262]
[1721067843672,0.30215367,63586.0,63585.0,0.34262]
[1721067844050,0.44727894,63586.0,63585.0,0.34262]
[1721067844421,0.35597894,63586.0,63585.0,0.32862]
[1721067844627,0.35597894,63586.0,63574.0,0.000913]
[1721067844628,0.06,63575.0,63574.0,0.000913]
[1721067844841,0.28742367,63575.0,63574.0,0.000913]
[1721067845036,0.28658347,63575.0,63574.0,0.000913]
[1721067845239,0.34757674,63575.0,63574.0,0.315503]
[1721067845439,0.34739958,63575.0,63574.0,0.315503]
[1721067845680,0.16658347,63575.0,63574.0,0.315503]
[1721067845885,0.02118347,63575.0,63574.0,1.115988]
[1721067846087,0.0652,63579.0,63577.0,0.157289]
[1721067846294,0.02079117,63578.0,63577.0,0.157289]
[1721067846507,0.02079117,63578.0,63577.0,0.471869]
[1721067846719,0.02079117,63578.0,63577.0,0.786448]
[1721067846930,0.00749353,63586.0,63577.0,0.629159]
[1721067846931,0.0614,63582.0,63577.0,0.629159]
[1721067847135,0.0614,63582.0,63581.0,0.471838]
[1721067847339,0.0614,63582.0,63581.0,0.786398]
[1721067847340,0.08259294,63582.0,63581.0,0.786398]
[1721067848135,0.00443,63586.0,63585.0,0.157269]
[1721067848334,0.02614084,63586.0,63585.0,1.100887]
[1721067848535,0.00443,63586.0,63585.0,1.099887]
[1721067848940,0.02613925,63586.0,63585.0,1.099887]
[1721067849241,0.00443,63586.0,63585.0,1.099887]
[1721067849413,0.00543,63586.0,63585.0,1.111887]
[1721067851466,0.00543,63586.0,63585.0,1.426426]
[1721067851691,0.00543,63586.0,63585.0,1.567026]
[1721067852192,0.00543,63586.0,63585.0,1.577026]
[1721067855309,0.00543,63586.0,63585.0,1.584886]
[1721067857402,0.00543,63586.0,63585.0,1.899425]
[1721067857609,0.00543,63586.0,63585.0,1.584886]
[1721067858166,0.00443,63586.0,63585.0,1.572886]
[1721067858434,0.00443,63586.0,63585.0,1.562886]
[1721067858648,0.00443,63586.0,63585.0,1.576886]
[1721067858856,0.00443,63586.0,63585.0,1.590886]
[1721067867632,0.00443,63586.0,63585.0,1.591799]
[1721067869645,0.00443,63586.0,63585.0,1.451199]
[1721067873197,0.00443,63586.0,63585.0,1.13666]
[1721067874789,0.12443,63586.0,63585.0,0.507582]
[1721067875015,0.12443,63586.0,63585.0,0.351313]
[1721067875016,0.14713339,63586.0,63585.0,0.351313]
[1721067875219,0.28863339,63586.0,63585.0,0.351313]
[1721067875954,0.51142697,63586.0,63585.0,0.351313]
[1721067876172,0.51142697,63586.0,63585.0,0.323313]
[1721067876173,1.1876133,63586.0,63585.0,0.323313]
[1721067876351,1.73106755,63586.0,63585.0,0.323313]
[1721067876548,0.2615,63575.0,63571.0,0.4673]
[1721067876849,0.28420339,63575.0,63572.0,0.157301]
[1721067877051,0.28487461,63575.0,63574.0,0.315503]
[1721067877581,0.16487461,63575.0,63574.0,0.315503]
[1721067877780,0.02337461,63575.0,63574.0,1.101988]
[1721067877940,0.1415,63581.0,63578.0,0.157284]
[1721067877941,0.2615,63581.0,63578.0,0.157284]
[1721067878153,0.14292241,63580.0,63579.0,0.31457]
[1721067879183,0.02292241,63580.0,63579.0,0.786423]
[1721067879359,0.02292241,63580.0,63579.0,1.113992]
[1721067879566,0.2415,63584.0,63582.0,0.157275]
[1721067879765,0.02398761,63583.0,63582.0,0.157275]
[1721067880012,0.02398761,63583.0,63582.0,0.471825]
[1721067880225,0.1415,63584.0,63582.0,0.470825]
[1721067880389,0.02398813,63583.0,63582.0,0.470825]
[1721067880595,0.02383613,63583.0,63582.0,0.470825]
[1721067880998,0.02483613,63583.0,63582.0,0.484825]
[1721067882327,0.14483613,63583.0,63582.0,0.484825]
[1721067882730,0.14483613,63583.0,63582.0,0.32855]
[1721067882934,0.44491013,63583.0,63582.0,0.34255]
[1721067883141,0.28763613,63583.0,63582.0,0.34255]
[1721067883552,0.35402997,63583.0,63582.0,0.34255]
[1721067883964,0.28763613,63583.0,63582.0,0.34255]
[1721067884161,0.28763613,63583.0,63582.0,0.499827]
[1721067884162,0.02483613,63583.0,63582.0,0.499827]
[1721067884808,0.02483613,63583.0,63582.0,0.34255]
[1721067884809,0.14483613,63583.0,63582.0,0.34255]
[1721067886733,0.14518501,63583.0,63582.0,0.34255]
[1721067887481,0.28798501,63583.0,63582.0,0.34255]
[1721067887858,0.35635984,63583.0,63582.0,0.34255]
[1721067888066,2.12909084,63583.0,63582.0,0.34255]
[1721067888277,2.25997109,63583.0,63582.0,0.34255]
[1721067888480,2.2835118,63583.0,63582.0,0.34255]
[1721067888682,1.90104897,63583.0,63582.0,0.34255]
[1721067888882,0.99825414,63583.0,63582.0,0.34255]
[1721067889011,0.63563384,63583.0,63582.0,0.32855]
[1721067889214,0.63563384,63583.0,63582.0,0.31755]
[1721067889215,0.94999712,63583.0,63582.0,0.31755]
[1721067889417,0.94980607,63583.0,63582.0,0.31855]
[1721067889906,0.45379806,63583.0,63582.0,0.31555]
[1721067890080,0.79266218,63583.0,63582.0,0.31955]
[1721067890303,0.700349,63583.0,63582.0,0.31855]
[1721067890522,0.72466328,63583.0,63582.0,0.31855]
[1721067890731,0.94909607,63583.0,63582.0,0.31555]
[1721067890930,0.94909607,63583.0,63582.0,0.32255]
[1721067891081,0.94909607,63583.0,63582.0,0.32755]
[1721067891732,0.94870939,63583.0,63582.0,0.32755]
[1721067892131,0.94870939,63583.0,63582.0,0.32055]
[1721067892335,0.94870939,63583.0,63582.0,0.31455]
[1721067892538,0.94870939,63583.0,63582.0,0.31755]
[1721067892738,0.94841201,63583.0,63582.0,0.31755]
[1721067892939,0.3868169,63583.0,63582.0,0.31455]
[1721067893139,0.3628,63583.0,63582.0,0.31455]
[1721067893341,0.45391373,63583.0,63582.0,0.32455]
[1721067893770,0.2440133,63583.0,63582.0,0.33255]
[1721067894127,0.2440133,63583.0,63582.0,0.32355]
[1721067894327,0.2440133,63583.0,63582.0,0.33455]
[1721067894743,0.2440133,63583.0,63582.0,0.32555]
[1721067895195,0.02439793,63583.0,63582.0,0.32555]
[1721067895396,0.02439793,63583.0,63582.0,0.797381]
[1721067895570,0.12,63585.0,63583.0,0.157274]
[1721067895571,0.02474286,63584.0,63583.0,0.157274]
[1721067895789,0.02474286,63584.0,63583.0,0.471824]